bitfinex/quotes_SOLUSD_20251013
["timestamp","ask_amount","ask_price","bid_price","bid_amount"]
[1760321439917,3.67924511,197.9,197.83,22.04120284]
[1760321441016,3.67924511,197.9,197.81,10.87647521]
[1760321441017,3.67924511,197.92,197.85,21.36941442]
[1760321441197,0.0979726,197.96,197.85,21.36941442]
[1760321441198,0.7679726,197.96,197.88,3.67924511]
[1760321441394,0.67,197.97,197.91,3.67924511]
[1760321441596,3.67924511,197.98,197.91,4.34924511]
[1760321441918,0.09167628,197.96,197.95,3.67924511]
[1760321442920,0.09167628,197.96,197.95,8.73102586]
[1760321443512,0.09167628,197.96,197.92,3.67924511]
[1760321443701,0.09167628,197.96,197.93,9.43747491]
[1760321444016,0.09167628,197.96,197.94,8.76747491]
[1760321444342,0.09167628,197.96,197.95,8.76747491]
[1760321445216,0.09167628,197.96,197.95,13.81925566]
[1760321445519,0.09167628,197.96,197.95,14.48925566]
[1760321445711,0.09167628,197.96,197.95,13.81925566]
[1760321446797,0.09167628,197.96,197.93,17.68276211]
[1760321447004,0.09167628,197.96,197.93,5.72229121]
[1760321447209,0.09167628,197.96,197.93,14.48976612]
[1760321447414,0.09167628,197.96,197.93,13.81976612]
[1760321447822,0.09167628,197.96,197.93,5.05229121]
[1760321449021,0.67,197.95,197.92,5.05254648]
[1760321449225,0.67,197.94,197.9,5.05280602]
[1760321449597,0.67,197.94,197.89,5.05328589]
[1760321449902,0.67,197.94,197.8,154.09999999]
[1760321449903,8.76747491,197.9,197.81,10.87647521]
[1760321450112,8.76747491,197.89,197.82,9.43747491]
[1760321450498,9.48747491,197.92,197.85,8.76747491]
[1760321450699,8.76747491,197.9,197.83,8.76747491]
[1760321450899,8.76747491,197.88,197.83,5.05484506]
[1760321451295,8.76747491,197.89,197.83,5.05484506]
[1760321454697,12.72086786,197.96,197.84,0.71]
[1760321454897,30.24747491,197.93,197.86,8.76747491]
[1760321455126,8.76747491,197.94,197.87,8.76747491]
[1760321455323,0.09167628,197.96,197.92,8.76747491]
[1760321455538,0.09167628,197.96,197.93,8.76747491]
[1760321455720,0.09167628,197.96,197.92,8.76747491]
[1760321456107,0.09167628,197.96,197.92,9.47747491]
[1760321456308,0.09167628,197.96,197.93,8.76747491]
[1760321456508,0.09167628,197.96,197.93,13.81960515]
[1760321457008,0.09167628,197.96,197.93,5.05213024]
[1760321457217,0.09167628,197.96,197.94,8.76747491]
[1760321458330,0.09167628,197.96,197.95,8.76747491]
[1760321458512,0.09167628,197.96,197.95,13.81925566]
[1760321458699,0.09167628,197.96,197.95,5.05178075]
[1760321458906,0.09167628,197.96,197.95,14.52925566]
[1760321460126,0.09167628,197.96,197.9,23.50888537]
[1760321460428,0.68,197.95,197.9,2.02598323]
[1760321460619,9.44747491,197.94,197.88,14.53104272]
[1760321460824,8.76747491,197.92,197.82,2.02659911]
[1760321461025,8.76747491,197.9,197.83,8.76747491]
[1760321461215,0.68,197.89,197.84,8.76747491]
[1760321461845,0.09404429,197.85,197.84,13.82206447]
[1760321462215,0.09404429,197.85,197.84,5.05458956]
[1760321463527,0.09404429,197.85,197.84,25.40853968]
[1760321463912,0.09404429,197.85,197.84,27.43524147]
[1760321464410,0.10909636,197.87,197.85,10.87647521]
[1760321464624,0.10909636,197.87,197.84,15.84876626]
[1760321464947,0.10909636,197.87,197.86,19.64395012]
[1760321465440,0.10909636,197.87,197.86,20.35395012]
[1760321465629,0.10714098,197.9,197.88,10.87647521]
[1760321465833,0.10714098,197.9,197.87,8.76747491]
[1760321465834,0.10714098,197.9,197.89,8.76747491]
[1760321466030,0.10714098,197.9,197.89,13.82078735]
[1760321466334,0.10714098,197.9,197.89,14.53078735]
[1760321466638,0.10714098,197.9,197.89,25.40726256]
[1760321466886,0.10714098,197.9,197.89,5.05331244]
[1760321467012,0.10714098,197.9,197.87,5.05360326]
[1760321467414,0.10714098,197.9,197.82,144.97647521]
[1760321467415,9.44747491,197.89,197.82,8.76747491]
[1760321467721,0.10714098,197.9,197.83,8.76747491]
[1760321467924,0.10714098,197.9,197.84,5.05458956]
[1760321467925,13.92777124,197.9,197.84,5.05458956]
[1760321468128,8.76747491,197.88,197.84,5.05458956]
[1760321468425,8.76747491,197.87,197.8,8.76747491]
[1760321468626,9.44747491,197.87,197.8,8.76747491]
[1760321469319,0.68,197.87,197.82,8.76747491]
[1760321469514,8.76747491,197.89,197.8,5.05561172]
[1760321469838,0.68,197.86,197.81,8.76747491]
[1760321470139,13.82112342,197.88,197.82,5.05510059]
[1760321471236,14.50112342,197.88,197.82,5.05510059]
[1760321471618,14.50112342,197.88,197.8,5.05546246]
[1760321471619,5.89220313,197.86,197.8,5.05546246]
[1760321471820,0.68,197.85,197.8,5.05546246]
[1760321472025,0.68,197.84,197.8,5.05546246]
[1760321472640,0.68,197.87,197.81,5.89220313]
[1760321473447,0.68,197.87,197.82,5.05510059]
[1760321473753,0.68,197.87,197.81,5.89220313]
[1760321473936,6.57220313,197.86,197.8,5.05558407]
[1760321474331,5.89220313,197.83,197.76,5.89220313]
[1760321474537,6.57220313,197.83,197.76,5.89220313]
[1760321474762,5.89220313,197.82,197.75,5.05689001]
[1760321474948,6.57220313,197.81,197.75,5.05689001]
[1760321475251,5.89220313,197.79,197.73,5.99220313]
[1760321475553,5.73549659,197.81,197.74,5.89220313]
[1760321475725,5.89220313,197.8,197.74,5.89220313]
[1760321476523,21.48,197.84,197.77,5.89220313]
[1760321476730,21.48,197.84,197.79,5.89220313]
[1760321476929,0.68,197.83,197.79,5.89220313]
[1760321477249,6.57220313,197.82,197.76,86.29220313]
[1760321477539,6.57220313,197.82,197.77,5.05637862]
[1760321477743,0.68,197.81,197.77,5.05637862]
[1760321479231,0.10714098,197.9,197.8,5.89220313]
[1760321479232,6.57220313,197.89,197.8,5.89220313]
[1760321479438,0.68,197.89,197.83,5.89220313]
[1760321479828,6.57220313,197.89,197.82,5.89220313]
[1760321480436,6.57220313,197.89,197.83,5.05484506]
[1760321480636,11.62553182,197.89,197.83,5.05484506]
[1760321481052,11.62553182,197.89,197.83,10.94704819]
[1760321481968,0.09371498,197.84,197.83,10.94704819]
[1760321482535,0.09371498,197.84,197.82,10.94730372]
[1760321482759,0.09371498,197.84,197.82,11.65730372]
[1760321483134,6.57220313,197.83,197.82,80.4]
[1760321483333,6.57220313,197.83,197.75,5.05689001]
[1760321483536,5.89220313,197.81,197.75,10.94909314]
[1760321483854,5.89220313,197.81,197.75,5.05689001]
[1760321484041,5.89220313,197.8,197.74,0.71]
[1760321484748,5.89220313,197.8,197.73,5.99220313]
[1760321485334,6.57220313,197.8,197.73,5.99220313]
[1760321485754,6.57220313,197.8,197.73,0.1]
[1760321485755,5.89220313,197.79,197.73,0.1]
[1760321486068,5.89220313,197.76,197.73,0.1]
[1760321486554,6.57220313,197.76,197.73,0.1]
[1760321487452,5.89220313,197.74,197.73,0.1]
[1760321487756,5.89220313,197.74,197.66,4.84]
[1760321487757,20.8,197.71,197.66,4.84]
[1760321488052,5.89220313,197.67,197.66,4.84]
[1760321488932,6.57220313,197.7,197.66,4.84]
[1760321489258,5.89220313,197.76,197.66,4.84]
[1760321489259,20.8,197.74,197.68,5.89220313]
[1760321489467,9.21580761,197.76,197.69,5.89220313]
[1760321489760,5.89220313,197.74,197.68,0.71]
[1760321489942,5.89220313,197.75,197.68,0.71]
[1760321490451,5.89220313,197.74,197.68,0.71]
[1760321490649,5.89220313,197.73,197.66,29.14932619]
[1760321490946,5.89220313,197.68,197.66,4.84]
[1760321491155,6.57220313,197.68,197.66,4.84]
[1760321492435,26.69220313,197.7,197.66,4.84]
[1760321492741,20.8,197.7,197.66,5.55]
[1760321493339,5.89220313,197.7,197.66,5.55]
[1760321494458,10.95016409,197.71,197.66,5.55]
[1760321494753,11.63016409,197.71,197.66,5.55]
[1760321495060,20.8,197.73,197.66,5.55]
[1760321495354,2.64360448,197.76,197.7,5.89220313]
[1760321495659,5.89220313,197.76,197.7,0.71]
[1760321496158,5.89220313,197.75,197.68,5.89220313]
[1760321496336,5.89220313,197.74,197.67,6.60220313]
[1760321496537,5.89220313,197.74,197.68,5.05868069]
[1760321497131,5.89220313,197.74,197.69,0.71]
[1760321497727,5.89220313,197.7,197.65,0.1]
[1760321497931,5.89220313,197.71,197.65,0.81]
[1760321498558,5.05765729,197.72,197.65,0.81]
[1760321498762,5.89220313,197.7,197.65,0.81]
[1760321499835,6.57220313,197.7,197.65,0.1]
[1760321500031,5.89220313,197.68,197.65,0.1]
[1760321500351,6.57220313,197.69,197.65,0.1]
[1760321500552,13.32261743,197.75,197.66,0.71]
[1760321500754,10.94934887,197.74,197.66,6.60220313]
[1760321500959,5.89220313,197.72,197.66,0.71]
[1760321501969,0.09887998,197.67,197.66,5.76919255]
[1760321505157,0.09887998,197.67,197.65,0.1]
[1760321505348,0.09887998,197.67,197.66,0.71]
[1760321505659,0.09887998,197.67,197.65,0.1]
[1760321506360,0.09887998,197.67,197.66,0.71]
[1760321506532,0.09887998,197.67,197.66,6.60220313]
[1760321507639,0.09887998,197.67,197.65,5.15930072]
[1760321508174,0.09887998,197.67,197.65,0.1]
[1760321509766,0.09887998,197.67,197.56,0.66]
[1760321509767,6.58220313,197.66,197.56,0.66]
[1760321509942,26.69220313,197.63,197.56,0.66]
[1760321510659,5.89220313,197.59,197.54,5.06226587]
[1760321510960,5.89220313,197.61,197.55,0.66]
[1760321511351,26.69220313,197.63,197.56,10.87647521]
[1760321511558,0.09887998,197.67,197.62,10.87647521]
[1760321512162,0.09887998,197.67,197.62,0.66]
[1760321512465,0.09887998,197.67,197.63,0.66]
[1760321512643,0.09887998,197.67,197.63,5.71995138]
[1760321512842,5.89220313,197.64,197.58,0.66]
[1760321513561,5.89220313,197.65,197.58,0.66]
[1760321514453,20.89887998,197.67,197.61,5.89220313]
[1760321514655,0.09887998,197.67,197.63,5.05996053]
[1760321514858,0.09887998,197.67,197.63,5.76996053]
[1760321515762,5.89220313,197.65,197.59,0.71]
[1760321516367,5.89220313,197.65,197.59,5.77073276]
[1760321516547,5.89220313,197.63,197.56,6.60220313]
[1760321516748,5.89220313,197.61,197.56,86.17155422]
[1760321516946,5.89220313,197.61,197.56,5.77155422]
[1760321517649,26.69220313,197.57,197.52,0.1]
[1760321517973,5.89220313,197.55,197.52,0.1]
[1760321519166,20.8,197.57,197.52,0.81]
[1760321519468,20.8,197.57,197.53,0.71]
[1760321519864,5.76086547,197.6,197.52,5.16270185]
[1760321520070,5.89220313,197.59,197.54,0.71]
[1760321520268,5.89220313,197.59,197.52,5.16270185]
[1760321520452,5.89220313,197.57,197.52,0.1]
[1760321520647,26.69220313,197.57,197.52,0.1]
[1760321520955,26.69220313,197.57,197.52,0.81]
[1760321521472,31.75391419,197.57,197.52,0.81]
[1760321521771,32.45391419,197.57,197.52,0.81]
[1760321521972,0.10598798,197.53,197.52,0.81]
[1760321522275,0.10598798,197.53,197.52,5.87277845]
[1760321524655,0.10834078,197.54,197.52,103.04145679]
[1760321524852,0.10834078,197.54,197.53,11.58647521]
[1760321525073,0.1100764,197.56,197.53,232.37658977]
[1760321525272,0.1100764,197.56,197.55,5.89220313]
[1760321525759,0.1100764,197.56,197.55,11.66421274]
[1760321527551,0.1100764,197.56,197.55,5.77200961]
[1760321527781,0.1100764,197.56,197.53,214.39165922]
[1760321527782,0.8100764,197.56,197.52,0.1]
[1760321527966,0.8100764,197.56,197.52,5.99220313]
[1760321528473,0.1100764,197.56,197.52,11.05489768]
[1760321529150,0.1100764,197.56,197.55,5.89220313]
[1760321529656,0.1100764,197.56,197.55,6.60220313]
[1760321529876,0.1100764,197.56,197.55,10.95421274]
[1760321530374,0.1100764,197.56,197.55,11.66421274]
[1760321531776,0.1100764,197.56,197.53,5.06228401]
[1760321532563,0.1100764,197.56,197.53,10.95448714]
[1760321532763,0.1100764,197.56,197.53,91.24614636]
[1760321533286,0.1100764,197.56,197.53,10.95448714]
[1760321533664,0.1100764,197.56,197.53,5.06228401]
[1760321533973,0.1100764,197.56,197.52,8.90025205]
[1760321534568,0.1100764,197.56,197.52,9.61025205]
[1760321535492,0.1100764,197.56,197.52,14.67290535]
[1760321538284,0.1100764,197.56,197.52,94.96456457]
[1760321538482,0.7,197.55,197.52,0.1]
[1760321538684,9.50025205,197.55,197.52,0.1]
[1760321540877,8.80025205,197.53,197.52,0.1]
[1760321541877,8.91155218,197.53,197.52,0.1]
[1760321542270,9.61155218,197.53,197.52,0.1]
[1760321542981,0.11130013,197.53,197.52,0.1]
[1760321543184,0.11130013,197.53,197.52,14.6730305]
[1760321543987,0.11130013,197.53,197.52,5.87277845]
[1760321544369,0.11130013,197.53,197.52,14.6730305]
[1760321545492,0.11130013,197.53,197.52,25.54950571]
[1760321546288,0.11130013,197.53,197.52,16.74925366]
[1760321546471,0.11130013,197.53,197.52,25.54950571]
[1760321547863,0.10371388,197.55,197.53,10.87647521]
[1760321547864,1e-08,197.55,197.53,10.87647521]
[1760321548061,0.10187177,197.57,197.55,10.87647521]
[1760321548287,1e-08,197.58,197.56,8.80025205]
[1760321548487,1e-08,197.58,197.52,18.52972458]
[1760321548672,1e-08,197.58,197.53,8.80025205]
[1760321548863,1e-08,197.58,197.56,10.87647521]
[1760321549085,1e-08,197.58,197.57,8.80025205]
[1760321549369,1e-08,197.58,197.57,9.51025205]
[1760321549570,1e-08,197.58,197.57,14.57174924]
[1760321550269,1e-08,197.58,197.57,5.06149719]
[1760321550572,1e-08,197.58,197.57,5.77149719]
[1760321551085,1e-08,197.58,197.57,14.57174924]
[1760321551868,1e-08,197.58,197.57,5.77149719]
[1760321552068,1e-08,197.58,197.57,5.06149719]
[1760321553361,1e-08,197.58,197.57,5.77149719]
[1760321553565,1e-08,197.58,197.57,5.06149719]
[1760321554595,1e-08,197.58,197.57,25.44822445]
[1760321554966,0.10016214,197.6,197.57,38.10196742]
[1760321555295,0.10016214,197.6,197.59,24.73771212]
[1760321555494,0.10010242,197.62,197.59,37.39017428]
[1760321555668,0.10010242,197.62,197.61,19.67672726]
[1760321556184,0.10010242,197.62,197.61,11.58647521]
[1760321556392,0.10010242,197.62,197.6,10.87647521]
[1760321556577,0.10010242,197.62,197.6,11.58647521]
[1760321556913,0.10010242,197.62,197.61,9.51025205]
[1760321557786,0.10010242,197.62,197.61,14.57072469]
[1760321557983,1e-08,197.62,197.61,24.7371999]
[1760321558294,1e-08,197.62,197.61,25.4471999]
[1760321561393,3.31426037,197.68,197.62,10.87647521]
[1760321561690,3.31426037,197.68,197.63,8.80025205]
[1760321561883,0.11051504,197.64,197.63,8.80025205]
[1760321562395,0.11051504,197.64,197.63,9.51025205]
[1760321562695,30.38076709,197.64,197.55,8.80025205]
[1760321562890,8.80025205,197.62,197.55,8.80025205]
[1760321563190,8.80025205,197.57,197.53,5.06252214]
[1760321563377,21.47,197.61,197.53,5.06252214]
[1760321563378,0.67,197.56,197.53,5.06252214]
[1760321565588,8.80025205,197.58,197.5,5.06314287]
[1760321565589,9.47025205,197.55,197.5,5.06314287]
[1760321565780,8.80025205,197.54,197.48,5.16375903]
[1760321565982,8.80025205,197.53,197.48,0.1]
[1760321566486,8.80025205,197.49,197.48,0.1]
[1760321566992,9.49025205,197.49,197.48,0.1]
[1760321568602,29.60025205,197.5,197.48,0.1]
[1760321568783,20.8,197.5,197.48,0.1]
[1760321568989,8.80025205,197.49,197.48,0.1]
[1760321570282,9.49025205,197.49,197.48,0.1]
[1760321570481,12.65383586,197.57,197.48,0.1]
[1760321570697,8.80025205,197.5,197.48,0.1]
[1760321570902,9.49025205,197.49,197.48,0.1]
[1760321571611,30.29025205,197.49,197.48,0.1]
[1760321571900,20.8,197.49,197.48,0.1]
[1760321572110,8.80025205,197.51,197.48,0.1]
[1760321572315,0.69,197.5,197.48,0.1]
[1760321572781,8.80025205,197.51,197.48,0.1]
[1760321573603,9.49025205,197.51,197.48,0.1]
[1760321574892,0.66,197.5,197.48,0.1]
[1760321576716,9.46025205,197.49,197.48,0.1]
[1760321577806,14.52379957,197.49,197.48,0.1]
[1760321580512,35.32379957,197.49,197.48,0.1]
[1760321581598,14.52379957,197.49,197.48,0.1]
[1760321581922,14.62593137,197.49,197.48,0.1]
[1760321582511,5.82567932,197.49,197.48,0.1]
[1760321582700,35.42593137,197.49,197.48,0.1]
[1760321582899,14.62593137,197.49,197.48,0.1]
[1760321583103,26.62567932,197.49,197.48,0.1]
[1760321583312,35.42593137,197.49,197.48,0.1]
[1760321589012,20.9021318,197.49,197.48,0.1]
[1760321589216,8.90238385,197.49,197.48,0.1]
[1760321589405,0.1021318,197.49,197.48,0.1]
[1760321589607,8.90238385,197.49,197.48,0.1]
[1760321590624,0.1021318,197.49,197.48,0.1]
[1760321590813,0.1021318,197.49,197.48,5.87380392]
[1760321591000,0.1021318,197.49,197.48,14.67405597]
[1760321591404,0.11024494,197.51,197.48,27.33356579]
[1760321591596,0.11024494,197.51,197.5,8.80025205]
[1760321591807,0.11024494,197.51,197.48,0.81]
[1760321592000,0.11024494,197.51,197.49,0.71]
[1760321592498,0.11024494,197.51,197.5,0.71]
[1760321594137,0.11024494,197.51,197.5,5.77329113]
[1760321595005,0.11024494,197.51,197.5,11.68577088]
[1760321599614,0.11024494,197.51,197.5,8.13716055]
[1760321601528,2.64520489,197.58,197.5,101.19538839]
[1760321601736,2.64520489,197.58,197.52,2.36386942]
[1760321602031,0.10037423,197.57,197.54,10.87647521]
[1760321602231,0.09779563,197.6,197.53,11.58647521]
[1760321602232,1e-08,197.6,197.58,10.87647521]
[1760321602527,2.64386289,197.69,197.6,17.7125506]
[1760321602824,2.64386289,197.69,197.65,2.36386942]
[1760321603009,2.64386289,197.69,197.65,0.71]
[1760321603530,2.64386289,197.69,197.66,0.71]
[1760321603723,2.64386289,197.69,197.64,2.36386942]
[1760321604027,2.64386289,197.69,197.66,5.05919255]
[1760321604405,0.2,197.72,197.66,5.05919255]
[1760321604621,2.36386942,197.67,197.62,0.71]
[1760321604828,2.36386942,197.67,197.61,17.71165426]
[1760321605028,2.36386942,197.68,197.62,0.71]
[1760321605723,2.36386942,197.66,197.58,10.87647521]
[1760321605925,2.36386942,197.66,197.59,5.77098486]
[1760321606319,21.5,197.67,197.57,5.06126931]
[1760321606320,2.36386942,197.62,197.57,5.06126931]
[1760321606505,3.06386942,197.61,197.57,5.06126931]
[1760321606710,2.36386942,197.61,197.57,5.06126931]
[1760321606938,2.36386942,197.62,197.57,5.06126931]
[1760321607246,2.36386942,197.62,197.57,5.77126931]
[1760321608535,2.36386942,197.58,197.52,0.71]
[1760321608704,2.36386942,197.57,197.52,0.71]
[1760321608908,20.8,197.59,197.5,13.24034463]
[1760321608909,2.36386942,197.58,197.53,0.71]
[1760321609110,2.36386942,197.56,197.53,0.71]
[1760321609329,20.8,197.59,197.53,0.71]
[1760321609527,2.36386942,197.56,197.53,0.71]
[1760321610422,2.36386942,197.57,197.53,5.77235497]
[1760321611643,2.36386942,197.58,197.53,5.77235497]
[1760321612014,2.36386942,197.57,197.53,5.77235497]
[1760321612214,2.36386942,197.57,197.53,5.06235497]
[1760321612215,3.06386942,197.57,197.53,5.06235497]
[1760321612516,0.7,197.56,197.48,2.46386942]
[1760321612722,2.36386942,197.55,197.48,2.46386942]
[1760321613021,2.36386942,197.55,197.49,0.71]
[1760321613436,2.36386942,197.55,197.49,5.77354752]
[1760321615316,2.36386942,197.5,197.48,5.16379592]
[1760321615519,3.06386942,197.49,197.48,0.1]
[1760321617331,8.12741694,197.49,197.41,0.1]
[1760321617529,26.72056123,197.47,197.41,0.1]
[1760321617838,5.92056123,197.42,197.41,0.1]
[1760321618016,26.72056123,197.4,197.33,0.1]
[1760321618526,11.68641735,197.4,197.34,0.71]
[1760321619214,11.68641735,197.4,197.33,0.1]
[1760321619215,32.48641735,197.4,197.33,0.1]
[1760321620826,21.5,197.4,197.33,5.1676507]
[1760321621143,31.67647521,197.39,197.33,0.1]
[1760321621445,20.8,197.31,197.22,0.71]
[1760321621636,5.92056123,197.26,197.22,5.78046282]
[1760321621841,20.8,197.29,197.23,0.71]
[1760321622019,20.8,197.33,197.24,5.92056123]
[1760321622219,5.92056123,197.31,197.24,6.63056123]
[1760321622646,5.92056123,197.31,197.24,5.92056123]
[1760321622836,0.10380142,197.34,197.27,5.92056123]
[1760321623143,0.10380142,197.34,197.27,6.63056123]
[1760321623447,0.10380142,197.34,197.29,5.92056123]
[1760321623627,0.10380142,197.34,197.31,5.92056123]
[1760321623831,0.10380142,197.34,197.32,6.63056123]
[1760321624149,0.10380142,197.34,197.33,5.92056123]
[1760321624314,0.10380142,197.34,197.32,5.92056123]
[1760321624519,0.10380142,197.34,197.32,6.64056123]
[1760321624939,0.10380142,197.34,197.33,5.06765316]
[1760321626445,0.10380142,197.34,197.33,6.64056123]
[1760321626625,0.10380142,197.34,197.29,6.64056123]
[1760321627032,0.10380142,197.34,197.29,0.72]
[1760321627342,0.10380142,197.34,197.32,5.92056123]
[1760321627739,0.10380142,197.34,197.33,0.72]
[1760321627942,0.10380142,197.34,197.25,5.78970849]
[1760321627943,0.56,197.33,197.25,5.78970849]
[1760321628129,5.92056123,197.31,197.26,0.72]
[1760321628328,5.92056123,197.32,197.28,5.06893755]
[1760321628639,26.72056123,197.33,197.28,5.78893755]
[1760321628845,26.72056123,197.33,197.29,0.72]
[1760321629033,26.72056123,197.33,197.28,5.06893755]
[1760321629227,26.72056123,197.33,197.28,5.78893755]
[1760321630122,0.10380142,197.34,197.29,0.72]
[1760321630322,5.92056123,197.33,197.29,0.72]
[1760321630549,5.92056123,197.32,197.29,5.78864432]
[1760321630735,20.8,197.33,197.29,5.78864432]
[1760321631729,5.92056123,197.33,197.29,5.06864432]
[1760321632049,5.92056123,197.3,197.23,0.72]
[1760321632431,5.92056123,197.31,197.23,6.64056123]
[1760321632637,5.92056123,197.33,197.24,6.64056123]
[1760321632824,5.92056123,197.29,197.21,17.74730281]
[1760321633028,5.92056123,197.27,197.21,18.46730281]
[1760321633347,5.92056123,197.27,197.21,17.74730281]
[1760321633559,5.92056123,197.27,197.23,5.07022258]
[1760321633730,5.92056123,197.26,197.24,0.72]
[1760321634325,5.92056123,197.27,197.24,0.72]
[1760321634954,2.64921087,197.27,197.24,0.72]
[1760321635772,0.56,197.26,197.19,10.22391953]
[1760321636062,2.64921087,197.27,197.19,10.22391953]
[1760321636063,5.92056123,197.2,197.19,10.22391953]
[1760321636269,21.36,197.24,197.19,10.22391953]
[1760321636485,5.92056123,197.22,197.19,10.22391953]
[1760321636766,5.92056123,197.22,197.19,15.29516395]
[1760321636969,5.92056123,197.22,197.19,10.22391953]
[1760321637559,5.92056123,197.2,197.19,10.22391953]
[1760321637747,20.8,197.24,197.19,10.22391953]
[1760321637947,5.92056123,197.21,197.19,10.22391953]
[1760321638364,5.92056123,197.22,197.19,15.2951649]
[1760321639247,26.42997352,197.24,197.19,10.22391953]
[1760321639248,5.92056123,197.2,197.19,10.22391953]
[1760321640380,6.48056123,197.2,197.19,10.22391953]
[1760321640550,0.56,197.22,197.19,10.22391953]
[1760321640751,5.92056123,197.2,197.19,10.22391953]
[1760321641574,5.63048984,197.22,197.07,5.17414345]
[1760321641575,20.8,197.17,197.07,5.17414345]
[1760321641758,26.72056123,197.17,197.08,6.58056123]
[1760321641947,5.92056123,197.15,197.09,0.66]
[1760321642149,5.92056123,197.15,197.1,5.07356671]
[1760321642354,5.92056123,197.15,197.1,5.73356671]
[1760321642773,5.92056123,197.15,197.07,12.78584766]
[1760321642774,5.92056123,197.13,197.08,5.07395476]
[1760321643156,5.92056123,197.13,197.09,0.66]
[1760321643873,2.74437301,197.2,197.08,17.75915873]
[1760321644053,5.92056123,197.16,197.1,0.66]
[1760321644373,2.74437301,197.2,197.12,5.92056123]
[1760321644559,2.74437301,197.2,197.16,5.92056123]
[1760321644754,2.74437301,197.2,197.17,0.66]
[1760321644961,2.74437301,197.2,197.18,0.66]
[1760321645268,2.74437301,197.2,197.11,43.12312919]
[1760321645450,2.74437301,197.2,197.16,5.92056123]
[1760321645644,2.74437301,197.2,197.17,0.66]
[1760321645645,0.09341594,197.2,197.17,0.66]
[1760321646274,0.09341594,197.2,197.18,5.07150826]
[1760321646474,27.18056123,197.19,197.08,0.66]
[1760321646770,26.72056123,197.17,197.09,5.92056123]
[1760321646992,5.92056123,197.16,197.1,0.66]
[1760321647363,5.92056123,197.15,197.1,0.66]
[1760321647565,5.92056123,197.12,197.08,5.07387125]
[1760321647768,5.92056123,197.13,197.08,5.07387125]
[1760321647972,5.92056123,197.14,197.09,0.66]
[1760321648274,17.84193406,197.2,197.13,5.0727946]
[1760321648275,0.09341594,197.2,197.13,5.0727946]
[1760321648464,31.88499287,197.2,197.13,5.7327946]
[1760321648671,5.92056123,197.17,197.13,5.0727946]
[1760321648868,5.92056123,197.17,197.13,5.7327946]
[1760321649070,21.26,197.17,197.11,5.07305562]
[1760321649253,5.92056123,197.15,197.11,5.07305562]
[1760321649759,6.01397717,197.2,197.12,6.58056123]
[1760321649954,6.01397717,197.2,197.13,6.58056123]
[1760321650160,0.09341594,197.2,197.11,17.75632891]
[1760321650362,0.09341594,197.2,197.15,5.07227998]
[1760321650866,26.81397717,197.2,197.16,0.66]
[1760321651064,5.92056123,197.17,197.15,5.07227998]
[1760321651267,5.92056123,197.17,197.1,13.3438258]
[1760321651470,5.92056123,197.15,197.1,13.3438258]
[1760321652377,5.92056123,197.15,197.07,31.39218506]
[1760321652378,20.8,197.11,197.07,0.1]
[1760321652584,5.92056123,197.1,197.07,5.83431241]
[1760321652882,5.92056123,197.1,197.07,4.17431241]
[1760321653077,5.92056123,197.1,197.05,5.7347065]
[1760321653259,5.92056123,197.1,197.06,0.66]
[1760321653460,5.92056123,197.1,197.05,5.0747065]
[1760321653662,5.92056123,197.1,197.06,0.66]
[1760321653955,5.92056123,197.08,197.06,5.73442474]
[1760321654355,0.46,197.1,197.03,4.86]
[1760321654666,20.8,197.13,197.04,0.66]
[1760321654866,24.93917002,197.13,197.04,0.66]
[1760321655084,30.01201025,197.13,197.04,0.66]
[1760321655384,0.46,197.12,197.03,9.93536477]
[1760321655562,8.84943358,197.06,197.03,9.93536477]
[1760321655766,8.84943358,197.06,197.04,0.66]
[1760321655961,8.84943358,197.1,197.06,5.07459656]
[1760321656171,4.13917002,197.13,197.07,0.66]
[1760321656363,5.07125107,197.19,197.07,0.66]
[1760321656570,0.55341594,197.2,197.07,9.50943358]
[1760321656775,8.84943358,197.15,197.08,0.66]
[1760321657088,8.84943358,197.16,197.08,8.84943358]
[1760321657484,8.84943358,197.16,197.09,8.84943358]
[1760321657865,8.84943358,197.16,197.06,43.13407082]
[1760321658164,8.84943358,197.13,197.09,5.07382414]
[1760321658366,8.84943358,197.12,197.09,5.07382414]
[1760321658782,8.84943358,197.1,197.06,5.07459656]
[1760321658965,8.84943358,197.08,197.06,5.07459656]
[1760321659166,0.71,197.1,197.06,5.07459656]
[1760321659381,8.84943358,197.08,197.06,5.07459656]